bitfinex-derivatives/quotes_BNBF0:USTF0_20250511
["timestamp","ask_amount","ask_price","bid_price","bid_amount"]
[1746973777343,0.30683317,651.82,651.03,0.25915391]
[1746973777833,0.30683317,651.82,651.04,1.1607634]
[1746973778140,0.30683317,651.82,651.05,0.25915391]
[1746973778355,0.30683317,651.82,651.06,1.1607634]
[1746973778535,0.30683317,651.82,651.07,0.25915391]
[1746973778738,0.30683317,651.82,651.08,1.1607634]
[1746973779035,0.30683317,651.82,651.09,0.25915391]
[1746973779240,0.30683317,651.82,651.1,1.1607634]
[1746973779436,0.30683317,651.82,651.11,0.25915391]
[1746973780039,0.30683317,651.82,651.12,1.1607634]
[1746973780239,0.30683317,651.82,651.13,1.41991731]
[1746973780441,0.30683317,651.82,651.14,1.41991731]
[1746973780643,0.30683317,651.82,651.15,0.25915391]
[1746973781039,0.30683317,651.82,651.16,1.1607634]
[1746973781241,0.30683317,651.82,651.17,0.25915391]
[1746973781640,0.30683317,651.82,651.18,1.16025824]
[1746973781941,0.30683317,651.82,651.19,0.25915391]
[1746973782242,0.30683317,651.82,650.46,0.25915391]
[1746973782441,0.30683317,651.82,650.47,0.25915391]
[1746973782741,0.30683317,651.82,650.48,1.41937088]
[1746973782943,0.30683317,651.82,650.49,1.41937088]
[1746973783142,0.30683317,651.82,650.5,1.41937088]
[1746973783344,0.30683317,651.82,650.51,0.25915391]
[1746973783543,0.30683317,651.82,650.52,1.41932797]
[1746973783741,0.30683317,651.82,650.53,0.259111]
[1746973784042,0.30683317,651.82,650.54,1.41932797]
[1746973784245,0.30683317,651.82,650.55,1.41932797]
[1746973784439,0.30683317,651.82,650.56,1.41932797]
[1746973784642,0.30683317,651.82,650.57,1.41932797]
[1746973784844,0.30683317,651.82,650.58,0.259111]
[1746973785044,0.30683317,651.82,650.59,0.259111]
[1746973785239,0.30683317,651.82,650.6,0.259111]
[1746973785439,0.30683317,651.82,650.61,0.259111]
[1746973785642,0.30683317,651.82,650.62,1.41932797]
[1746973785946,0.30683317,651.82,650.63,1.41932797]
[1746973786244,0.30683317,651.82,650.64,1.41932797]
[1746973786444,0.30683317,651.82,650.65,0.259111]
[1746973786645,0.30683317,651.82,650.66,1.41932797]
[1746973786837,0.30683317,651.82,650.67,0.259111]
[1746973787042,0.30683317,651.82,650.68,1.16021697]
[1746973787239,0.30683317,651.82,650.69,1.41932797]
[1746973787443,0.30683317,651.82,650.7,1.41932797]
[1746973787643,0.30683317,651.82,650.71,1.41932797]
[1746973787941,0.30683317,651.82,650.72,1.41932797]
[1746973788144,0.30683317,651.82,650.73,0.259111]
[1746973788342,0.30683317,651.82,650.74,1.16021697]
[1746973788646,0.30683317,651.82,650.75,1.16005357]
[1746973788846,0.30683317,651.82,650.76,1.16005357]
[1746973789147,0.30683317,651.82,650.76,1.41916457]
[1746973789351,0.30683317,651.82,650.77,0.259111]
[1746973789648,0.30683317,651.82,650.46,0.259111]
[1746973789946,0.30683317,651.82,650.47,0.259111]
[1746973790147,0.30683317,651.82,650.48,0.259111]
[1746973790347,0.30683317,651.82,650.45,0.25895478]
[1746973790348,0.30683317,651.82,650.49,0.259111]
[1746973790548,0.30683317,651.82,650.5,0.259111]
[1746973790843,0.30683317,651.82,650.51,0.259111]
[1746973791049,0.30683317,651.82,650.52,0.259111]
[1746973791245,0.30683317,651.82,650.53,0.259111]
[1746973791443,0.30683317,651.82,650.54,0.259111]
[1746973791743,0.30683317,651.82,650.55,0.259111]
[1746973791948,0.30683317,651.82,650.56,0.259111]
[1746973792148,0.30683317,651.82,650.46,0.259111]
[1746973792349,0.30683317,651.82,650.47,0.259111]
[1746973792649,0.30683317,651.82,650.48,0.259111]
[1746973792848,0.30683317,651.82,650.49,0.259111]
[1746973793048,0.30683317,651.82,650.5,0.259111]
[1746973793249,0.30683317,651.82,650.51,0.259111]
[1746973793448,0.30683317,651.82,650.52,0.25910891]
[1746973793749,0.30683317,651.82,650.53,1.41832939]
[1746973793949,0.30683317,651.82,650.54,0.25910891]
[1746973794149,0.30683317,651.82,650.55,0.25910891]
[1746973794349,0.30683317,651.82,650.56,1.41827646]
[1746973794544,0.30683317,651.82,650.57,0.25910891]
[1746973794744,0.30683317,651.82,650.57,1.41827646]
[1746973794948,0.30683317,651.82,650.58,1.41827646]
[1746973795249,0.30683317,651.82,650.59,1.41827646]
[1746973795446,0.30683317,651.82,650.6,0.2591698]
[1746973795652,0.30683317,651.82,650.61,1.15916755]
[1746973795850,0.30683317,651.82,650.62,1.41833735]
[1746973796050,0.30683317,651.82,650.63,1.41833735]
[1746973796247,0.30683317,651.82,650.64,0.2591698]
[1746973796551,0.30683317,651.82,650.65,1.41833735]
[1746973796751,0.30683317,651.82,650.66,0.2591698]
[1746973796956,0.30683317,651.82,650.67,1.41833735]
[1746973797255,0.30683317,651.82,650.68,1.41833735]
[1746973797556,0.30683317,651.82,650.69,1.41833735]
[1746973797752,0.30683317,651.82,650.7,1.15916755]
[1746973797951,0.30683317,651.82,650.71,1.15916755]
[1746973798154,0.30683317,651.82,650.71,1.41831382]
[1746973798353,0.30683317,651.82,650.72,1.41831382]
[1746973798751,0.30683317,651.82,650.73,1.41831382]
[1746973798956,0.30683317,651.82,650.74,0.25914627]
[1746973799156,0.30683317,651.82,650.75,1.15916755]
[1746973799458,0.30683317,651.82,650.76,1.41831382]
[1746973799751,0.30683317,651.82,650.77,1.41831382]
[1746973800055,0.30683317,651.82,650.78,1.41831382]
[1746973800251,0.30683317,651.82,650.79,1.15916755]
[1746973800552,0.30683317,651.82,650.8,1.15916755]
[1746973800754,0.30683317,651.82,650.81,0.25909466]
[1746973800954,0.30683317,651.82,650.82,1.41826221]
[1746973801255,0.30683317,651.82,650.83,0.25909466]
[1746973801457,0.30683317,651.82,650.84,0.25909466]
[1746973801659,0.30683317,651.82,650.85,0.25909466]
[1746973801852,0.30683317,651.82,650.82,1.15916755]
[1746973802056,0.30683317,651.82,650.83,0.25901569]
[1746973802253,0.30683317,651.82,650.84,0.25901569]
[1746973802452,0.30683317,651.82,650.85,0.25901569]
[1746973802655,0.30683317,651.82,650.86,0.25901569]
[1746973802958,0.30683317,651.82,650.87,1.41818324]
[1746973803160,0.30683317,651.82,650.88,1.41818324]
[1746973803357,0.30683317,651.82,650.89,0.25901569]
[1746973803555,0.30683317,651.82,650.9,0.25901569]
[1746973803757,0.30683317,651.82,650.91,0.25901569]
[1746973803953,0.30683317,651.82,650.92,0.25901569]
[1746973804153,0.30683317,651.82,650.93,1.41818324]
[1746973804356,0.30683317,651.82,650.94,1.41818324]
[1746973804554,0.30683317,651.82,650.45,0.25895478]
[1746973804555,0.30683317,651.82,650.95,1.41818324]
[1746973804759,0.30683317,651.82,650.45,0.25895478]
[1746973804760,0.30683317,651.82,650.96,1.15916755]
[1746973804961,0.30683317,651.82,650.97,0.25908024]
[1746973805360,0.30683317,651.82,650.98,1.15916755]
[1746973805560,0.30683317,651.82,650.99,1.41824779]
[1746973805760,0.30683317,651.82,651.0,0.25908024]
[1746973805961,0.30683317,651.82,651.01,1.15916755]
[1746973806154,0.30683317,651.82,651.02,0.25908024]
[1746973806661,0.30683317,651.82,651.03,1.15916755]
[1746973806857,0.30683317,651.82,651.04,0.25908265]
[1746973807161,0.30683317,651.82,651.05,1.15916755]
[1746973807356,0.30683317,651.82,651.06,1.4182502]
[1746973807558,0.30683317,651.82,651.07,0.25908265]
[1746973807761,0.30683317,651.82,651.08,1.15916755]
[1746973807962,0.30683317,651.82,651.09,0.25908265]
[1746973808864,0.30683317,651.82,651.1,1.15916755]
[1746973809066,0.30683317,651.82,651.11,0.25908265]
[1746973809662,0.30683317,651.82,650.46,0.25908265]
[1746973809862,0.30683317,651.82,650.47,1.41974462]
[1746973810062,0.30683317,651.82,650.47,1.16066197]
[1746973810261,0.30683317,651.82,650.48,1.41989502]
[1746973810463,0.30683317,651.82,650.49,0.25925772]
[1746973810665,0.30683317,651.82,650.5,1.41989502]
[1746973811066,0.30683317,651.82,650.51,0.25925772]
[1746973811268,0.30683317,651.82,650.52,0.25925772]
[1746973811566,0.30683317,651.82,650.53,1.41989502]
[1746973811767,0.30683317,651.82,650.54,1.41989502]
[1746973812063,0.30683317,651.82,650.55,1.41989502]
[1746973812263,0.30683317,651.82,650.56,0.25925772]
[1746973812468,0.30683317,651.82,650.57,0.25925772]
[1746973812666,0.30683317,651.82,650.58,1.41989502]
[1746973812866,0.30683317,651.82,650.59,0.25925772]
[1746973813068,0.30683317,651.82,650.6,0.25925772]
[1746973813268,0.30683317,651.82,650.61,0.25925772]
[1746973813569,0.30683317,651.82,650.62,0.25925772]
[1746973813766,0.30683317,651.82,650.63,1.41989502]
[1746973813968,0.30683317,651.82,650.64,0.25925772]
[1746973814169,0.30683317,651.82,650.63,1.1606373]
[1746973814366,0.30683317,651.82,650.65,1.1606373]
[1746973814569,0.30683317,651.82,650.66,1.41977241]
[1746973814870,0.26698582,651.81,650.66,1.1606373]
[1746973815071,0.30684729,651.79,650.67,1.41988098]
[1746973815271,0.30684729,651.79,650.68,0.25924368]
[1746973815474,0.30684729,651.79,650.68,1.1606373]
[1746973815975,0.30684729,651.79,650.46,1.1606373]
[1746973816474,0.30684729,651.79,650.47,0.25931324]
[1746973816774,0.30684729,651.79,650.48,0.25931324]
[1746973816974,0.30684729,651.79,650.49,1.41995054]
[1746973817177,0.30684729,651.79,650.5,0.25931324]
[1746973817375,0.30684729,651.79,650.51,1.41995054]
[1746973817675,0.30684729,651.79,650.52,0.25931324]
[1746973817975,0.30684729,651.79,650.53,0.25931324]
[1746973818175,0.30684729,651.79,650.54,0.25931324]
[1746973818377,0.30684729,651.79,650.55,0.25931324]
[1746973818674,0.30684729,651.79,650.56,0.25931324]
[1746973818874,0.30684729,651.79,650.54,0.25931324]
[1746973819068,0.30684729,651.79,650.55,1.41995054]
[1746973819274,0.30684729,651.79,650.56,0.25931324]
[1746973819475,0.30684729,651.79,650.56,1.41995054]
[1746973819678,0.30684729,651.79,650.57,0.25931324]
[1746973819870,0.26700631,651.78,650.58,0.25931324]
[1746973820075,0.30686142,651.76,650.59,1.41995054]
[1746973820377,0.30686142,651.76,650.6,1.41995054]
[1746973820578,0.30686142,651.76,650.61,0.25931324]
[1746973820873,0.30686142,651.76,650.62,1.41995054]
[1746973821078,0.30686142,651.76,650.63,1.1606373]
[1746973821879,0.30686142,651.76,650.64,1.1606373]
[1746973822078,0.30686142,651.76,650.65,1.1606373]
[1746973822478,0.30686142,651.76,650.66,1.1606373]
[1746973822777,0.30686142,651.76,650.67,1.1606373]
[1746973823379,0.30686142,651.76,650.47,0.25931324]
[1746973823380,0.30686142,651.76,650.68,1.41968614]
[1746973823680,0.30686142,651.76,650.69,0.25904884]
[1746973823982,0.30686142,651.76,650.68,1.1606373]
[1746973823983,0.30686142,651.76,650.7,1.41968614]
[1746973824276,0.30686142,651.76,650.71,1.41968614]
[1746973824475,0.30686142,651.76,650.72,1.41968614]
[1746973824675,0.30686142,651.76,650.73,0.25904884]
[1746973824879,0.30686142,651.76,650.74,0.25904884]
[1746973825079,0.30686142,651.76,650.74,1.1606373]
[1746973825378,0.30686142,651.76,650.75,0.25904884]
[1746973825580,0.30686142,651.76,650.76,1.1606373]
[1746973825880,0.30686142,651.76,650.77,0.25904884]
[1746973826078,0.30686142,651.76,650.78,1.1606373]
[1746973826281,0.30686142,651.76,650.79,0.25904884]
[1746973826479,0.30686142,651.76,650.8,1.1606373]
[1746973826680,0.30686142,651.76,650.81,0.25904884]
[1746973826880,0.30686142,651.76,650.82,0.25904884]
[1746973827183,0.30686142,651.76,650.83,0.25932044]
[1746973827480,0.30686142,651.76,650.84,0.25932044]
[1746973827675,0.30686142,651.76,650.85,1.1606373]
[1746973827878,0.30686142,651.76,650.85,1.41995774]
[1746973828079,0.30686142,651.76,650.86,0.25932044]
[1746973828275,0.30686142,651.76,650.87,1.41995774]
[1746973828480,0.30686142,651.76,650.88,0.25932044]
[1746973828674,0.30686142,651.76,650.89,0.25932044]
[1746973828875,0.30686142,651.76,650.9,0.25932044]
[1746973829173,0.30686142,651.76,650.91,1.41995774]
[1746973829375,0.30686142,651.76,650.92,1.41995774]
[1746973829575,0.30686142,651.76,650.93,0.25932044]
[1746973829777,0.30686142,651.76,650.94,1.1606373]
[1746973830081,0.30686142,651.76,650.95,1.1606373]
[1746973830380,0.30686142,651.76,650.96,0.25932044]
[1746973830580,0.30686142,651.76,650.97,0.25932044]
[1746973830782,0.30686142,651.76,650.98,1.41995774]
[1746973830978,0.30686142,651.76,650.99,0.25932044]
[1746973831281,0.30686142,651.76,651.0,1.1606373]
[1746973831576,0.30686142,651.76,651.01,1.41995774]
[1746973831883,0.30686142,651.76,651.02,0.25932044]
[1746973832383,0.30686142,651.76,651.03,1.1606373]
[1746973832579,0.30686142,651.76,651.04,0.25932044]
[1746973832782,0.30686142,651.76,651.05,1.1606373]
[1746973832982,0.30686142,651.76,651.06,0.25932044]
[1746973833182,0.30686142,651.76,651.07,1.1606373]
[1746973833383,0.30686142,651.76,651.08,0.25932044]
[1746973833584,0.30686142,651.76,651.09,1.1606373]
[1746973833784,0.30686142,651.76,651.1,0.25940942]
[1746973834083,0.30686142,651.76,651.11,1.1606373]
[1746973834379,0.30686142,651.76,651.12,0.25940942]
[1746973835383,0.30686142,651.76,650.47,0.25931324]
[1746973835583,0.30686142,651.76,650.48,1.42085871]
[1746973835784,0.30686142,651.76,650.49,0.2595496]
[1746973836084,0.30686142,651.76,650.5,1.16130337]
[1746973836683,0.30686142,651.76,650.51,0.25958909]
[1746973836879,0.30686142,651.76,650.52,1.42089246]
[1746973837081,0.30686142,651.76,650.53,0.25958909]
[1746973837283,0.30686142,651.76,650.54,1.16130337]
[1746973837479,0.30686142,651.76,650.55,0.25958909]
[1746973837786,0.30686142,651.76,650.56,1.42089764]
[1746973837986,0.30686142,651.76,650.57,0.25959427]
[1746973838180,0.30686142,651.76,650.57,1.42089764]
[1746973838385,0.30686142,651.76,650.58,0.25959427]
[1746973838585,0.30686142,651.76,650.59,1.42089764]
[1746973838785,0.30686142,651.76,650.6,0.25959427]
[1746973838986,0.30686142,651.76,650.61,1.16130337]
[1746973839387,0.30686142,651.76,650.62,1.16130337]
[1746973839681,0.30686142,651.76,650.63,1.42076491]
[1746973839885,0.30686142,651.76,650.63,1.16130337]
[1746973840087,0.30686142,651.76,650.64,1.42076633]
[1746973840288,0.30686142,651.76,650.65,1.42076633]
[1746973840586,0.30686142,651.76,650.66,1.42076633]
[1746973840787,0.30686142,651.76,650.67,1.42076633]
[1746973840987,0.30686142,651.76,650.68,0.25946296]
[1746973841183,0.30686142,651.76,650.69,1.16130337]
[1746973841487,0.30686142,651.76,650.7,1.42076633]
[1746973841786,0.30686142,651.76,650.71,0.25946296]
[1746973841988,0.30686142,651.76,650.72,1.42046768]
[1746973842186,0.30686142,651.76,650.73,0.25916431]
[1746973842385,0.30686142,651.76,650.74,0.25916431]
[1746973842587,0.30686142,651.76,650.75,0.25916431]
[1746973842783,0.30686142,651.76,650.76,1.16130337]
[1746973843086,0.30686142,651.76,650.76,1.42046768]
[1746973843289,0.30686142,651.76,650.77,0.25916431]
[1746973843588,0.30686142,651.76,650.78,1.42046768]
[1746973843889,0.30686142,651.76,650.79,1.42046768]
[1746973844088,0.30686142,651.76,650.8,0.25916431]
[1746973844289,0.30686142,651.76,650.81,1.42046768]
[1746973844487,0.30686142,651.76,650.82,0.25916431]
[1746973844685,0.30686142,651.76,650.83,0.25916431]
[1746973844984,0.30686142,651.76,650.84,1.42046768]
[1746973845184,0.30686142,651.76,650.85,1.42046768]
[1746973845495,0.30686142,651.76,650.86,0.25916431]
[1746973845891,0.30686142,651.76,650.87,1.16130337]
[1746973846192,0.30686142,651.76,650.88,0.25916431]
[1746973846491,0.30686142,651.76,650.87,1.16130337]
[1746973846693,0.30686142,651.76,650.88,1.4206025]
[1746973846888,0.30686142,651.76,650.89,0.25929913]
[1746973847093,0.30686142,651.76,650.9,1.16130337]
[1746973847294,0.30686142,651.76,650.91,0.25929913]
[1746973847494,0.30686142,651.76,650.92,1.16130337]
[1746973847693,0.30686142,651.76,650.93,0.25929913]
[1746973847993,0.30686142,651.76,650.93,1.4206025]
[1746973848190,0.30686142,651.76,650.94,1.4206025]
[1746973848390,0.30686142,651.76,650.95,0.25929913]
[1746973848593,0.30686142,651.76,650.96,0.25929913]
[1746973848793,0.30686142,651.76,650.97,0.25929913]
[1746973848991,0.30686142,651.76,650.98,0.25929913]
[1746973849191,0.30686142,651.76,650.99,0.25929913]
[1746973849395,0.30686142,651.76,651.0,1.4206025]
[1746973849595,0.30686142,651.76,651.01,0.25929913]
[1746973849994,0.30686142,651.76,651.02,1.16130337]
[1746973850191,0.30686142,651.76,651.03,0.25929913]
[1746973850496,0.30686142,651.76,651.04,1.16130337]
[1746973850695,0.30686142,651.76,651.05,0.25929913]
[1746973850997,0.30686142,651.76,651.06,1.4206025]
[1746973851190,0.30686142,651.76,651.07,0.25929913]
[1746973851395,0.30686142,651.76,651.08,1.4206025]
[1746973851597,0.30686142,651.76,651.09,0.25929913]
[1746973851898,0.30686142,651.76,651.1,1.4206025]
[1746973852096,0.30686142,651.76,651.11,0.25929913]
[1746973852293,0.30686142,651.76,651.11,1.4206025]
[1746973852499,0.30686142,651.76,651.12,1.4206025]
[1746973852797,0.30686142,651.76,651.13,0.25929913]
[1746973852992,0.30686142,651.76,651.13,1.4206025]
[1746973853192,0.30686142,651.76,651.13,1.16130337]
[1746973853495,0.30686142,651.76,651.14,1.16130337]
[1746973853695,0.30686142,651.76,651.15,0.25896862]
[1746973853893,0.30686142,651.76,651.16,1.42027199]
[1746973854097,0.30686142,651.76,651.17,1.42027199]
[1746973854297,0.30686142,651.76,651.18,0.25896862]
[1746973854498,0.30686142,651.76,651.19,0.25896862]
[1746973854798,0.30686142,651.76,651.2,0.25896862]
[1746973854994,0.30686142,651.76,651.21,0.25896862]
[1746973855293,0.30686142,651.76,651.22,0.25896862]
[1746973855498,0.30686142,651.76,651.23,1.42027199]
[1746973855697,0.30686142,651.76,651.24,0.25896862]
[1746973855898,0.30686142,651.76,651.25,0.25896862]
[1746973856098,0.30686142,651.76,651.25,1.16130337]
[1746973856399,0.30686142,651.76,651.26,0.25900517]
[1746973856698,0.30686142,651.76,651.27,1.42030854]
[1746973856898,0.30686142,651.76,651.28,0.25900517]
[1746973857098,0.30686142,651.76,651.29,1.42030854]
[1746973857399,0.30686142,651.76,651.3,1.42030854]
[1746973857595,0.30686142,651.76,651.31,0.25900517]
[1746973857797,0.30686142,651.76,651.32,0.25900517]
[1746973857997,0.30686142,651.76,651.33,0.25900517]
[1746973858395,0.30686142,651.76,651.34,1.16130337]
[1746973858600,0.30686142,651.76,651.35,0.25900517]
[1746973859098,0.30686142,651.76,651.36,1.42030854]
[1746973859299,0.30686142,651.76,651.37,0.25900517]
[1746973859598,0.30686142,651.76,651.38,0.25900517]
[1746973859795,0.30686142,651.76,651.39,1.42030854]
[1746973860000,0.30686142,651.76,651.4,0.25900517]
[1746973860200,0.30686142,651.76,651.4,1.42030854]
[1746973860502,0.30686142,651.76,651.41,0.25900517]
[1746973860799,0.30686142,651.76,651.42,1.16130337]
[1746973860994,0.30686142,651.76,651.43,0.25900517]
[1746973861599,0.30686142,651.76,651.44,1.16130337]
[1746973861895,0.30686142,651.76,651.45,0.25900517]
[1746973862096,0.30686142,651.76,651.46,1.16130337]
[1746973862302,0.30686142,651.76,651.47,0.25900517]
[1746973862803,0.30686142,651.76,651.48,1.16130337]
[1746973863005,0.30686142,651.76,651.49,0.25900517]
[1746973863205,0.30686142,651.76,651.5,1.16130337]
[1746973863408,0.30686142,651.76,651.51,0.25900517]
[1746973863606,0.30686142,651.76,651.51,1.42030854]
[1746973863805,0.30686142,651.76,651.52,0.25900517]
[1746973864202,0.30686142,651.76,651.53,1.16130337]
[1746973864406,0.30686142,651.76,651.54,0.25900517]
[1746973864901,0.30686142,651.76,651.55,1.16130337]
[1746973865105,0.30686142,651.76,651.56,1.42030854]
[1746973865302,0.30686142,651.76,651.57,0.25900517]
[1746973865702,0.30686142,651.76,651.58,1.16130337]
[1746973865906,0.30686142,651.76,651.59,0.25900517]
[1746973866204,0.30686142,651.76,651.6,1.16130337]
[1746973866408,0.30686142,651.76,651.61,0.25900517]
[1746973866704,0.30686142,651.76,651.62,1.16130337]
[1746973867007,0.30686142,651.76,651.63,0.25900517]
[1746973867405,0.30686142,651.76,651.64,1.16130337]
[1746973867602,0.30686142,651.76,651.65,0.25910079]
[1746973867810,0.30686142,651.76,651.66,1.16130337]
[1746973868010,0.30686142,651.76,651.67,1.39713571]
[1746973868305,0.30686142,651.76,651.68,1.39713571]
[1746973868509,0.30686142,651.76,651.69,0.25910079]
[1746973868809,0.30686142,651.76,651.7,1.13803492]
[1746973869010,0.30686142,651.76,651.71,0.25910079]
[1746973869311,0.30686142,651.76,651.7,1.13803492]
[1746973869510,0.30686142,651.76,651.71,1.39708913]
[1746973869709,0.30686142,651.76,651.72,0.25905421]
[1746973869905,0.30686142,651.76,651.73,1.13803492]
[1746973870106,0.30686142,651.76,651.74,0.258991]
[1746973870712,0.60733719,654.16,651.74,0.258991]
[1746973870912,0.60733719,654.16,651.75,1.13803492]
[1746973871212,0.60733719,654.16,651.76,0.258991]
[1746973871412,0.60733719,654.16,651.77,1.13803492]
[1746973871611,0.60733719,654.16,651.78,1.39702592]
[1746973871913,0.60733719,654.16,651.79,0.258991]
[1746973872107,0.60733719,654.16,651.8,1.13803492]
[1746973872414,0.60733719,654.16,651.81,1.39702592]
[1746973872612,0.60733719,654.42,651.82,0.258991]
[1746973872811,0.60733719,654.42,651.83,1.13803492]
[1746973873112,0.60724752,654.42,651.84,1.39689698]
[1746973873308,0.60724752,654.42,651.85,0.25886206]
[1746973873611,0.60724752,654.42,651.85,1.39689698]
[1746973873910,0.60724752,654.42,651.86,0.25886206]
[1746973874114,0.60724752,654.42,651.86,1.39689698]
[1746973874411,0.60724752,654.42,651.87,0.25886206]
[1746973874712,1.95105089,654.41,651.87,0.25886206]
[1746973874914,1.95105089,654.41,650.47,0.25931324]
[1746973875109,0.6072749,654.4,650.48,1.70217554]
[1746973875306,0.6072749,654.4,650.49,0.56634991]
[1746973875511,0.6072749,654.4,650.5,1.70216609]
[1746973875712,0.6072749,654.4,650.51,0.56634046]
[1746973875911,0.6072749,654.4,650.57,0.30742272]
[1746973876112,0.6072749,654.4,650.58,1.39471029]
[1746973876313,0.6072749,654.4,650.6,0.30740854]
[1746973876508,1.95105089,654.3,650.61,0.25888939]
[1746973876709,0.6072749,654.29,650.62,0.56628848]
[1746973876909,0.6072749,654.29,650.63,1.70210466]
[1746973877111,0.6072749,654.29,650.64,0.56627903]
[1746973877315,0.6072749,654.29,650.65,1.70209521]
[1746973877515,0.6072749,654.29,650.66,0.25888939]
[1746973877815,0.6072749,654.29,650.67,1.39471029]
[1746973878010,0.6072749,654.29,650.68,0.25888939]
[1746973878217,0.6072749,654.29,650.69,0.56625541]
[1746973878411,1.95105089,654.3,650.7,1.4431822]
[1746973878615,0.60717558,654.29,650.71,0.25861098]
[1746973878816,0.60717558,654.29,650.72,1.39443188]
[1746973879017,0.60717558,654.29,650.73,0.25861098]
[1746973879215,0.60717558,654.29,650.74,0.25861098]
[1746973879517,0.60717558,654.29,650.75,1.39443188]
[1746973879719,0.60717558,654.29,650.76,0.25861098]
[1746973879919,0.60717558,654.29,650.77,1.39443188]
[1746973880114,1.95105089,654.38,650.77,1.1358209]
[1746973880317,0.6072386,654.37,650.78,0.25870065]
[1746973880514,0.6072386,654.36,650.79,1.39452155]
[1746973880714,1.95105089,654.38,650.79,1.1358209]
[1746973881015,1.95105089,654.38,650.8,1.1358209]
[1746973881519,1.95105089,654.38,650.81,1.1358209]
[1746973881917,1.95105089,654.06,650.81,1.1358209]
[1746973882120,1.95105089,653.55,650.81,1.1358209]
[1746973882320,1.95105089,653.55,650.82,1.1358209]
[1746973882824,1.95105089,653.55,650.83,1.1358209]
[1746973883124,1.95105089,653.55,650.84,1.1358209]
[1746973883424,1.21473005,653.54,650.85,1.39461318]
[1746973883724,1.21473005,653.54,650.86,0.25879228]
[1746973883926,1.95105089,653.42,650.87,0.25879228]
[1746973884124,1.95105089,653.42,650.88,1.39461318]
[1746973884322,1.95105089,653.42,650.89,0.25879228]
[1746973884525,1.95105089,653.42,650.9,1.39461318]
[1746973884720,1.95105089,653.42,650.91,0.25879228]
[1746973884921,1.95105089,653.42,650.92,1.39461318]
[1746973885219,1.95105089,653.42,650.93,0.25879228]
[1746973885421,1.95105089,653.42,650.94,0.25879228]
[1746973885623,1.95105089,653.3,650.95,0.25879228]
[1746973885823,1.95105089,653.3,650.96,1.39456832]
[1746973886025,1.95105089,653.3,650.97,0.25874939]
[1746973886221,1.95105089,653.3,650.98,1.39457029]
[1746973886424,1.95105089,653.3,650.99,0.25874939]
[1746973886626,1.95105089,653.3,651.0,0.25874939]
[1746973886925,1.95105089,653.3,650.77,0.26676274]
[1746973886926,1.95105089,653.3,651.01,1.39457029]
[1746973887126,1.95105089,653.3,651.02,0.25874939]
[1746973887326,1.95105089,653.3,651.03,1.39457029]
[1746973887527,0.60735665,653.54,651.04,0.25874939]
[1746973887720,0.60735665,653.54,651.05,0.25874939]
[1746973887921,0.60735665,653.54,651.06,1.39457029]
[1746973888122,0.60735665,653.54,651.07,0.25874939]
[1746973888324,0.60735665,653.54,651.08,1.39457029]
[1746973888520,0.60735665,653.54,651.09,0.25874939]
[1746973888730,0.60735665,653.54,651.1,0.25874939]
[1746973889025,0.60735665,653.54,651.11,1.39457029]
[1746973889226,0.60735665,653.54,651.12,1.39457029]
[1746973889421,0.60735665,653.54,651.13,1.1358209]
[1746973889625,0.60735665,653.54,651.14,0.2587338]
[1746973889927,0.60735665,653.54,651.15,1.13692968]
[1746973890225,0.60735665,653.54,651.16,0.25872794]
[1746973890426,0.60735665,653.54,651.16,1.39565762]
[1746973890626,0.60735665,653.54,651.17,0.25872794]
[1746973890926,0.60735665,653.54,651.18,1.13692968]
[1746973891126,0.60735665,653.54,651.19,0.25872794]
[1746973891427,0.60735665,653.54,651.18,1.13692968]
[1746973891722,0.60735665,653.54,651.19,1.39570206]
[1746973891927,0.60735665,653.54,651.2,1.39570206]
[1746973892130,0.60735665,653.54,651.21,0.25877238]
[1746973892328,0.60735665,653.54,651.22,1.13692968]
[1746973892628,0.60735665,653.54,651.23,1.39565792]
[1746973892822,0.60735665,653.54,651.24,0.25872824]
[1746973893021,0.60735665,653.54,651.23,1.13692968]
[1746973893224,0.60735665,653.54,651.25,1.13692968]
[1746973893423,0.60735665,653.54,650.7,0.3073613]
[1746973893424,0.60735665,653.54,651.26,1.39565729]
[1746973893623,0.60735665,653.54,651.27,1.39565729]
[1746973893823,0.60735665,653.54,651.28,1.39566833]
[1746973894330,0.60735665,653.54,651.29,1.39566287]
[1746973894529,0.60735665,653.54,651.3,1.13692968]
[1746973894924,0.60735665,653.54,651.3,0.25870331]
[1746973895228,0.60735665,653.54,651.31,1.39563299]
[1746973895428,0.60735665,653.54,651.32,0.25870331]
[1746973895631,0.60735665,653.54,651.33,1.39563299]
[1746973895829,0.60735665,653.54,651.34,1.13692968]
[1746973896029,0.60735665,653.54,651.34,1.39563299]
[1746973896234,0.60735665,653.54,651.35,1.39563299]
[1746973896428,0.60735665,653.54,651.36,1.13692968]
[1746973896627,0.60735665,653.54,651.36,1.39563299]
[1746973896929,1.95105089,653.49,651.37,0.25870331]
[1746973897228,1.95105089,653.49,651.37,1.39563299]
[1746973897428,1.95105089,653.49,651.38,1.13692968]
[1746973897625,1.95105089,653.49,651.39,1.13928423]
[1746973897826,1.95105089,653.49,651.39,1.39791308]
[1746973898026,1.95105089,653.49,651.4,1.13928423]